bitfinex-derivatives/quotes_SOLF0:USTF0_20241203
["timestamp","ask_amount","ask_price","bid_price","bid_amount"]
[1733260634093,1.2534,234.23,234.04,27.33218729]
[1733260634686,1.2534,234.23,234.03,27.32200624]
[1733260634891,12.8,234.35,234.03,27.32200624]
[1733260635090,27.32200624,234.34,234.08,27.32200624]
[1733260635493,1.2409,234.4,234.23,27.32200624]
[1733260635690,2.131,234.51,234.39,2.1319]
[1733260635994,1.2409,234.56,234.33,27.32200624]
[1733260636190,2.1314,234.46,234.34,2.1324]
[1733260636490,27.32200624,234.5,234.17,40.0]
[1733260636693,27.32200624,234.5,234.25,27.32200624]
[1733260637090,27.32200624,234.45,234.25,27.32200624]
[1733260637293,27.32200624,234.5,234.25,27.32200624]
[1733260638193,2.132,234.39,234.25,27.32200624]
[1733260638494,27.32200624,234.5,234.25,27.32200624]
[1733260638689,40.12200624,234.5,234.25,27.32200624]
[1733260638892,27.32200624,234.5,234.25,27.32200624]
[1733260639291,1.2409,234.56,233.82,1.81227251]
[1733260639496,27.32200624,234.42,234.17,27.32200624]
[1733260639689,12.8,234.47,234.17,27.32200624]
[1733260639894,40.12200624,234.35,234.07,27.32200624]
[1733260640091,2.6447,234.46,234.17,27.32200624]
[1733260640287,29.96670624,234.46,234.22,27.32200624]
[1733260640492,27.32200624,234.41,234.17,27.32200624]
[1733260640794,27.32200624,234.36,234.11,27.32200624]
[1733260640994,27.32200624,234.41,234.16,27.32200624]
[1733260641689,2.1333,234.26,234.16,27.32200624]
[1733260641895,12.8,234.4,234.16,27.32200624]
[1733260642091,2.1326,234.33,234.16,27.32200624]
[1733260642296,12.8,234.4,234.16,27.32200624]
[1733260642496,40.12200624,234.36,234.11,27.32200624]
[1733260642698,1.3485,234.35,234.11,27.32200624]
[1733260643097,27.32200624,234.34,234.11,27.32200624]
[1733260643298,1.3485,234.35,234.11,27.32200624]
[1733260644794,27.32200624,234.44,234.16,27.32200624]
[1733260645493,27.32200624,234.44,234.21,27.32200624]
[1733260645798,2.6447,234.46,234.26,27.32200624]
[1733260645995,1.2837,234.46,234.26,27.32200624]
[1733260646300,39.98,234.5,234.31,27.32200624]
[1733260646501,39.98,234.5,234.39,2.132]
[1733260646502,2.1311,234.5,234.39,2.132]
[1733260646696,1.3052,234.59,234.36,27.32200624]
[1733260646896,1.3052,234.59,234.31,27.32200624]
[1733260647103,2.1313,234.47,234.36,2.1322]
[1733260647398,1.3052,234.59,234.31,27.32200624]
[1733260647805,1.3052,234.59,234.39,2.132]
[1733260648102,1.3052,234.59,234.31,27.32200624]
[1733260648302,1.3052,234.59,234.36,27.32200624]
[1733260648303,2.131,234.51,234.36,27.32200624]
[1733260648503,1.3052,234.59,234.36,27.32200624]
[1733260648898,2.1311,234.5,234.39,2.132]
[1733260649098,27.32200624,234.6,234.24,27.32200624]
[1733260649099,1.3605,234.67,234.41,27.32200624]
[1733260649304,1.3605,234.67,234.47,27.32200624]
[1733260649503,2.6512,234.79,234.47,27.32200624]
[1733260649504,1.3515,234.79,234.47,27.32200624]
[1733260649705,27.32200624,234.76,234.47,27.32200624]
[1733260650201,27.32200624,234.71,234.47,27.32200624]
[1733260650397,2.1292,234.7,234.56,2.1304]
[1733260650598,27.32200624,234.66,234.42,27.32200624]
[1733260650900,27.32200624,234.71,234.42,27.32200624]
[1733260651498,27.32200624,234.75,234.51,27.32200624]
[1733260651899,2.1296,234.66,234.52,2.1308]
[1733260653209,39.96,234.77,234.51,27.32200624]
[1733260653505,39.96,234.77,234.56,27.32200624]
[1733260653802,2.1288,234.75,234.62,2.1298]
[1733260654001,1.2997,234.78,234.61,27.32200624]
[1733260654201,1.3515,234.79,234.61,27.32200624]
[1733260654507,1.3515,234.79,234.66,27.32200624]
[1733260654807,27.32200624,234.94,234.7,27.32200624]
[1733260655101,27.32200624,234.9,234.7,27.32200624]
[1733260655406,27.32200624,234.8,234.55,27.32200624]
[1733260655609,67.26200624,234.84,234.63,27.32200624]
[1733260655906,2.1294,234.69,234.59,27.32200624]
[1733260656207,67.26200624,234.84,234.59,27.32200624]
[1733260656507,27.32200624,234.77,234.54,27.32200624]
[1733260656707,27.32200624,234.81,234.58,27.32200624]
[1733260656901,1.3507,234.83,234.62,27.32200624]
[1733260657101,1.3507,234.83,234.66,27.32200624]
[1733260657603,2.1288,234.75,234.66,27.32200624]
[1733260658404,39.94,234.84,234.66,27.32200624]
[1733260659112,27.32200624,235.8,234.83,81.96601872]
[1733260659303,10.5944,235.85,235.38,27.32200624]
[1733260659304,3.8779,235.78,235.38,27.32200624]
[1733260659511,1.251,235.56,235.38,27.32200624]
[1733260659711,1.251,235.56,235.3,27.32200624]
[1733260660011,14.051,235.56,235.2,27.32200624]
[1733260660207,27.32200624,235.48,234.46,10.6567]
[1733260660412,2.1262,235.03,234.92,27.32200624]
[1733260660606,27.32200624,235.19,234.84,27.32200624]
[1733260660813,27.32200624,235.14,234.84,27.32200624]
[1733260661009,2.1267,234.98,234.84,27.32200624]
[1733260661206,27.32200624,235.09,234.79,27.32200624]
[1733260661409,27.32200624,235.04,234.78,27.32200624]
[1733260661610,27.32200624,235.04,234.8,2.1283]
[1733260661809,27.32200624,235.04,234.78,27.32200624]
[1733260662010,2.1269,234.96,234.83,27.32200624]
[1733260662407,39.88,235.08,234.83,27.32200624]
[1733260662711,27.32200624,235.16,234.88,27.32200624]
[1733260663008,2.1253,235.13,234.98,27.32200624]
[1733260663212,2.1253,235.13,234.96,27.32200624]
[1733260663213,27.32200624,235.33,235.03,27.32200624]
[1733260663612,27.32200624,235.33,235.08,27.32200624]
[1733260663812,2.1244,235.24,235.08,27.32200624]
[1733260664010,39.88,235.37,235.13,27.32200624]
[1733260664211,2.1238,235.3,235.13,27.32200624]
[1733260664411,39.88,235.37,235.13,27.32200624]
[1733260664609,39.88,235.37,235.14,2.1251]
[1733260664811,2.1238,235.3,235.13,27.32200624]
[1733260665010,2.5145,235.43,235.18,27.32200624]
[1733260665211,1.2601,235.43,235.23,27.32200624]
[1733260665809,1.2601,235.43,235.18,27.32200624]
[1733260666413,27.32200624,235.44,235.18,27.32200624]
[1733260666414,2.1238,235.3,235.18,27.32200624]
[1733260666614,27.32200624,235.48,235.23,27.32200624]
[1733260667614,2.1234,235.34,235.23,27.32200624]
[1733260667814,27.32200624,235.48,235.23,27.32200624]
[1733260668414,1.2643,235.55,235.33,27.32200624]
[1733260668608,29.23845609,235.57,235.38,27.32200624]
[1733260669510,29.23845609,235.57,235.33,27.32200624]
[1733260669709,2.1217,235.54,235.38,2.123]
[1733260669913,29.23845609,235.57,235.33,27.32200624]
[1733260671210,56.56046233,235.57,235.33,27.32200624]
[1733260671413,2.1227,235.42,235.33,27.32200624]
[1733260671611,29.23845609,235.57,235.33,27.32200624]
[1733260671816,2.1222,235.48,235.33,27.32200624]
[1733260672010,29.23845609,235.57,235.33,27.32200624]
[1733260672412,2.1217,235.53,235.38,2.123]
[1733260672613,29.23845609,235.57,235.33,27.32200624]
[1733260672811,29.23845609,235.57,235.4,27.32200624]
[1733260673012,2.1222,235.48,235.34,2.1234]
[1733260673214,29.23845609,235.57,235.33,27.32200624]
[1733260673615,27.32200624,235.53,235.33,27.32200624]
[1733260673811,29.23845609,235.57,235.33,27.32200624]
[1733260674012,2.122,235.5,235.33,29.44550624]
[1733260674214,29.23845609,235.57,235.33,27.32200624]
[1733260675012,2.1225,235.44,235.33,27.32200624]
[1733260675218,29.23845609,235.57,235.33,27.32200624]
[1733260675513,2.1226,235.44,235.33,27.32200624]
[1733260675718,29.23845609,235.57,235.33,27.32200624]
[1733260675917,29.23845609,235.57,235.38,27.32200624]
[1733260678618,29.23845609,235.57,235.33,27.32200624]
[1733260678619,56.56046233,235.57,235.33,27.32200624]
[1733260678818,27.32200624,235.47,234.96,67.10200624]
[1733260679017,27.32200624,235.42,235.21,27.32200624]
[1733260679218,27.32200624,235.42,235.08,27.32200624]
[1733260679219,27.32200624,235.32,235.08,27.32200624]
[1733260679513,27.32200624,235.19,234.95,27.32200624]
[1733260679820,27.32200624,235.14,234.9,27.32200624]
[1733260680120,27.32200624,235.19,234.95,27.32200624]
[1733260680321,39.78,235.39,235.0,27.32200624]
[1733260680519,27.32200624,235.24,235.0,27.32200624]
[1733260680914,27.32200624,235.3,234.84,27.32200624]
[1733260681115,27.32200624,235.3,235.08,27.32200624]
[1733260681313,2.1237,235.31,235.16,2.125]
[1733260681521,1.2886,235.41,235.18,27.32200624]
[1733260681715,27.32200624,235.4,235.18,27.32200624]
[1733260681916,39.8,235.68,235.3,27.32200624]
[1733260682120,27.32200624,235.63,235.35,27.32200624]
[1733260682314,3.7816,235.67,235.32,27.32200624]
[1733260682315,2.1225,235.45,235.32,27.32200624]
[1733260682521,27.32200624,235.63,235.32,27.32200624]
[1733260682722,27.32200624,235.63,235.38,27.32200624]
[1733260682917,2.1215,235.56,235.43,27.32200624]
[1733260683223,3.7816,235.67,235.43,27.32200624]
[1733260683622,27.32200624,235.63,235.39,27.32200624]
[1733260684019,2.1219,235.52,235.39,27.32200624]
[1733260684221,3.7816,235.67,235.44,27.32200624]
[1733260684622,0.23845609,235.57,235.46,2.1223]
[1733260684819,0.23845609,235.57,235.44,27.32200624]
[1733260685323,0.23845609,235.57,235.39,27.32200624]
[1733260686523,0.23845609,235.57,235.13,39.78]
[1733260686723,27.32200624,235.53,235.08,27.32200624]
[1733260686924,27.32200624,235.48,235.26,27.32200624]
[1733260687425,27.32200624,235.48,235.2,27.32200624]
[1733260687627,27.32200624,235.43,235.2,27.32200624]
[1733260687924,27.32200624,235.38,235.08,27.32200624]
[1733260688125,27.32200624,235.33,235.08,27.32200624]
[1733260688327,27.32200624,235.26,234.84,27.32200624]
[1733260688524,27.32200624,235.26,235.01,27.32200624]
[1733260688725,27.32200624,235.21,234.96,27.32200624]
[1733260689026,27.32200624,235.16,234.89,27.32200624]
[1733260689419,27.32200624,235.11,234.73,0.9311]
[1733260689618,27.32200624,235.06,234.83,27.32200624]
[1733260690025,27.32200624,235.01,234.78,27.32200624]
[1733260690619,2.1268,234.97,234.82,2.1281]
[1733260690824,27.32200624,235.02,234.78,27.32200624]
[1733260691121,2.1269,234.97,234.83,29.45000624]
[1733260691322,27.32200624,234.99,234.78,27.32200624]
[1733260691523,27.32200624,234.93,234.72,27.32200624]
[1733260691718,2.1281,234.83,234.67,2.1295]
[1733260691924,27.32200624,234.96,234.6,27.32200624]
[1733260692124,27.32200624,234.96,234.69,27.32200624]
[1733260692726,27.32200624,234.95,234.69,27.32200624]
[1733260692921,39.8,235.44,234.92,27.32200624]
[1733260693122,27.32200624,235.28,235.03,27.32200624]
[1733260693427,3.842,235.43,235.18,27.32200624]
[1733260693926,3.842,235.43,235.23,27.32200624]
[1733260693927,2.1232,235.37,235.23,27.32200624]
[1733260694127,3.842,235.43,235.23,27.32200624]
[1733260694321,27.32200624,235.39,235.13,27.32200624]
[1733260694520,27.32200624,235.34,235.13,27.32200624]
[1733260694723,27.32200624,235.29,235.03,27.32200624]
[1733260694925,2.1249,235.19,235.03,29.44820624]
[1733260695121,39.82,235.3,235.02,27.32200624]
[1733260695326,27.32200624,235.32,235.12,27.32200624]
[1733260695522,2.1242,235.26,235.12,27.32200624]
[1733260695727,27.32200624,235.41,235.17,27.32200624]
[1733260695929,27.32200624,235.36,235.12,27.32200624]
[1733260696130,27.32200624,235.23,234.67,0.9407]
[1733260696332,27.32200624,235.23,234.98,27.32200624]
[1733260696932,27.32200624,235.22,234.68,0.9516]
[1733260697129,12.8,235.16,234.69,0.78187413]
[1733260697334,27.32200624,235.32,234.95,27.32200624]
[1733260697532,27.32200624,235.29,235.05,27.32200624]
[1733260698028,27.32200624,235.4,235.16,27.32200624]
[1733260698230,12.8,235.56,235.16,27.32200624]
[1733260698433,27.32200624,235.49,235.21,27.32200624]
[1733260698636,2.1231,235.39,235.23,2.1244]
[1733260698935,27.32200624,235.49,235.26,27.32200624]
[1733260699136,0.23845609,235.57,235.3,27.32200624]
[1733260699335,27.32200624,235.54,235.3,27.32200624]
[1733260700034,27.32200624,235.54,235.26,27.32200624]
[1733260700232,0.23845609,235.57,235.37,27.32200624]
[1733260700834,2.1217,235.53,235.37,27.32200624]
[1733260701133,0.23845609,235.57,235.37,27.32200624]
[1733260701335,2.1219,235.51,235.37,27.32200624]
[1733260701539,0.23845609,235.57,235.37,27.32200624]
[1733260701835,2.1219,235.52,235.37,27.32200624]
[1733260702039,0.23845609,235.57,235.37,27.32200624]
[1733260703230,0.23845609,235.57,235.42,27.32200624]
[1733260703432,0.23845609,235.57,235.44,2.1225]
[1733260703633,0.23845609,235.57,235.42,27.32200624]
[1733260703838,0.23845609,235.57,235.52,27.32200624]
[1733260704133,0.23845609,235.57,235.49,27.32200624]
[1733260704436,0.23845609,235.57,235.32,27.32200624]
[1733260704437,0.23845609,235.57,235.54,27.32200624]
[1733260705034,0.23845609,235.57,235.53,27.32200624]
[1733260705736,0.23845609,235.57,235.33,1.26]
[1733260705737,0.23845609,235.57,235.49,27.32200624]
[1733260707137,0.23845609,235.57,235.44,27.32200624]
[1733260707337,2.1216,235.55,235.44,27.32200624]
[1733260707539,0.23845609,235.57,235.44,27.32200624]
[1733260707935,0.23845609,235.57,235.44,29.44450624]
[1733260708138,0.23845609,235.57,235.52,27.32200624]
[1733260708935,0.23845609,235.57,235.44,27.32200624]
[1733260709640,0.23845609,235.57,235.38,27.32200624]
[1733260709934,0.23845609,235.57,235.51,27.32200624]
[1733260710138,0.23845609,235.57,235.56,27.32200624]
[1733260710637,27.32200624,235.81,235.56,27.32200624]
[1733260711232,27.32200624,235.81,235.61,27.32200624]
[1733260711638,2.1203,235.69,235.56,27.32200624]
[1733260711839,27.32200624,235.81,235.56,27.32200624]
[1733260712040,28.55430624,235.86,235.61,27.32200624]
[1733260712241,2.1195,235.79,235.65,2.1206]
[1733260712737,2.1195,235.79,235.61,27.32200624]
[1733260712738,2.1196,235.77,235.63,2.1208]
[1733260713043,28.55430624,235.86,235.61,27.32200624]
[1733260713241,2.1202,235.71,235.56,2.1214]
[1733260713443,27.32200624,235.81,235.57,27.32200624]
[1733260713943,28.55430624,235.86,235.62,27.32200624]
[1733260714344,28.55430624,235.86,235.66,2.1206]
[1733260714840,28.55430624,235.86,235.62,27.32200624]
[1733260715046,28.55430624,235.86,235.57,27.32200624]
[1733260715245,27.32200624,235.7,235.17,39.74]
[1733260715546,27.32200624,235.7,235.43,27.32200624]
[1733260715747,27.32200624,235.65,235.43,27.32200624]
[1733260717040,27.32200624,235.6,235.38,27.32200624]
[1733260717244,27.32200624,235.6,235.32,27.32200624]
[1733260717944,2.5474,235.67,235.41,27.32200624]
[1733260718448,2.1212,235.59,235.47,2.1222]
[1733260718747,2.5474,235.67,235.41,27.32200624]
[1733260718948,2.5474,235.67,235.46,27.32200624]
[1733260719348,27.32200624,235.63,235.06,6.3779]
[1733260719547,2.122,235.5,235.38,2.1231]
[1733260719743,2.5474,235.67,235.35,27.32200624]
[1733260719744,27.32200624,235.58,235.35,27.32200624]
[1733260719949,27.32200624,235.47,235.25,27.32200624]
[1733260720247,27.32200624,235.47,235.2,27.32200624]
[1733260720547,27.32200624,235.47,235.25,27.32200624]
[1733260721143,27.32200624,235.42,235.2,27.32200624]
[1733260722248,27.32200624,235.42,235.21,2.1246]
[1733260722448,27.32200624,235.42,235.2,27.32200624]
[1733260722744,39.74,235.65,235.2,27.32200624]
[1733260722745,27.32200624,235.8,235.33,27.32200624]
[1733260723049,27.32200624,235.61,235.33,27.32200624]
[1733260723249,27.32200624,235.61,235.38,27.32200624]
[1733260723449,2.1213,235.58,235.44,2.1225]
[1733260723652,27.32200624,235.61,235.38,27.32200624]
[1733260724149,27.32200624,235.61,235.43,2.1226]
[1733260725253,27.32200624,235.58,235.1,4.2511]
[1733260725446,27.32200624,235.53,235.29,27.32200624]
[1733260725850,27.32200624,235.58,235.34,27.32200624]
[1733260726555,2.122,235.51,235.38,2.123]
[1733260726755,27.32200624,235.53,235.31,27.32200624]
[1733260726956,27.32200624,235.58,235.31,27.32200624]
[1733260727150,2.122,235.5,235.39,2.123]
[1733260727356,27.32200624,235.58,235.36,27.32200624]
[1733260727651,27.32200624,235.63,235.36,27.32200624]
[1733260727856,27.32200624,235.63,235.42,2.1227]
[1733260728057,27.32200624,235.58,235.32,27.32200624]
[1733260728256,2.1219,235.52,235.39,2.123]
[1733260728460,41.0219,235.66,235.32,27.32200624]
[1733260728757,27.32200624,235.61,235.32,27.32200624]
[1733260728954,2.1218,235.53,235.38,2.123]
[1733260729155,27.32200624,235.61,235.32,27.32200624]
[1733260730052,2.1219,235.51,235.39,2.1229]
[1733260730258,27.32200624,235.61,235.32,27.32200624]
[1733260730458,41.0219,235.66,235.44,27.32200624]
[1733260730459,1.2619,235.66,235.44,27.32200624]
[1733260730856,27.32200624,235.7,235.44,27.32200624]
[1733260730857,27.32200624,235.75,235.5,27.32200624]
[1733260731051,27.32200624,235.8,235.56,27.32200624]
[1733260731255,2.1205,235.67,235.56,2.1214]
[1733260731553,27.32200624,235.8,235.51,27.32200624]
[1733260731953,2.1201,235.72,235.61,2.121]
[1733260732157,27.32200624,235.8,235.51,27.32200624]
[1733260732460,2.1201,235.72,235.58,2.1212]
[1733260732662,27.32200624,235.8,235.56,27.32200624]
[1733260733356,2.12,235.72,235.59,2.1211]
[1733260733557,27.32200624,235.72,235.33,1.3339]
[1733260733756,27.32200624,235.72,235.52,27.32200624]
[1733260734159,2.1204,235.68,235.57,2.1213]
[1733260734358,2.1204,235.68,235.52,27.32200624]
[1733260734359,27.32200624,235.72,235.52,27.32200624]
[1733260734552,27.32200624,235.77,235.52,27.32200624]
[1733260734757,27.32200624,235.77,235.61,2.121]
[1733260735058,27.32200624,235.77,235.52,27.32200624]
[1733260735258,27.32200624,235.82,235.57,27.32200624]
[1733260736357,2.12,235.72,235.6,2.121]
[1733260736554,2.12,235.72,235.57,27.32200624]
[1733260736954,27.32200624,235.77,235.52,27.32200624]
[1733260738157,2.12,235.72,235.6,2.1211]
[1733260738360,2.12,235.72,235.57,27.32200624]
[1733260738562,27.32200624,235.8,235.57,27.32200624]
[1733260738764,2.12,235.73,235.61,2.121]
[1733260739062,27.32200624,235.74,235.52,27.32200624]
[1733260739561,27.32200624,235.8,235.52,27.32200624]
[1733260739862,27.32200624,235.75,235.52,27.32200624]
[1733260740257,2.1203,235.7,235.61,2.121]
[1733260740457,27.32200624,235.75,235.52,27.32200624]
[1733260741463,52.54,235.88,235.52,27.32200624]
[1733260741662,27.32200624,235.76,235.52,27.32200624]
[1733260741965,27.32200624,235.67,235.48,27.32200624]
[1733260742164,27.32200624,235.55,235.33,27.32200624]
[1733260742463,27.32200624,235.59,235.37,27.32200624]
[1733260742658,27.32200624,235.63,235.37,27.32200624]
[1733260743261,41.0719,235.66,235.41,27.32200624]
[1733260743262,27.32200624,235.64,235.41,27.32200624]
[1733260743662,2.1214,235.57,235.47,2.1223]
[1733260743865,1.3319,235.66,235.45,27.32200624]
[1733260744961,27.32200624,235.6,235.37,27.32200624]
[1733260745166,27.32200624,235.56,235.33,27.32200624]
[1733260745367,27.32200624,235.52,235.29,27.32200624]
[1733260745863,27.32200624,235.48,235.25,27.32200624]
[1733260746167,27.32200624,235.48,235.29,27.32200624]
[1733260746764,27.32200624,235.52,235.29,27.32200624]
[1733260747267,2.1225,235.45,235.34,2.1234]
[1733260747970,27.32200624,235.44,235.23,27.32200624]
[1733260748165,28.57440624,235.44,235.23,27.32200624]
[1733260748363,1.2524,235.44,235.23,27.32200624]
[1733260748566,2.1231,235.39,235.23,27.32200624]
[1733260748768,1.2524,235.44,235.23,27.32200624]
[1733260748969,27.32200624,235.39,235.05,1.2722]
[1733260749166,2.6683,235.43,235.18,27.32200624]
[1733260749463,2.6683,235.43,235.22,27.32200624]
[1733260749669,2.1235,235.34,235.23,2.1244]
[1733260749967,2.6683,235.43,235.14,27.32200624]
[1733260750169,2.124,235.29,235.14,27.32200624]
[1733260750368,27.32200624,235.37,235.14,27.32200624]
[1733260750669,27.32200624,235.29,235.08,27.32200624]
[1733260751568,15.4683,235.43,235.08,27.32200624]
[1733260751770,2.6683,235.43,235.22,27.32200624]
[1733260752070,39.78,235.72,235.34,27.32200624]
[1733260752264,1.2778,235.63,235.43,27.32200624]
[1733260752470,1.2259,235.71,235.47,27.32200624]
[1733260752767,27.32200624,235.68,235.44,27.32200624]
[1733260752965,1.2778,235.7,235.5,27.32200624]
[1733260753570,1.2778,235.7,235.44,27.32200624]
[1733260753770,27.32200624,235.68,235.5,2.1219]
[1733260754071,27.32200624,235.77,235.53,27.32200624]
[1733260754265,2.1199,235.74,235.58,2.1213]
[1733260754467,27.32200624,235.83,235.45,1.2767]
[1733260754668,27.32200624,235.83,235.6,27.32200624]
[1733260754968,27.32200624,235.78,235.55,27.32200624]
[1733260755369,27.32200624,235.78,235.63,2.1208]
[1733260755570,27.32200624,235.78,235.55,27.32200624]
[1733260755967,27.32200624,235.84,235.63,2.1208]
[1733260756471,2.1196,235.77,235.6,27.32200624]
[1733260757377,27.32200624,235.79,235.61,2.121]
[1733260757576,2.1197,235.76,235.61,2.121]
[1733260758279,27.32200624,235.79,235.56,27.32200624]
[1733260759076,2.1201,235.72,235.56,27.32200624]
[1733260759479,2.1196,235.78,235.64,2.1207]
[1733260759778,1.2598,235.98,235.73,27.32200624]
[1733260759978,27.32200624,235.93,235.73,27.32200624]
[1733260760178,27.32200624,235.89,235.66,27.32200624]
[1733260760374,27.32200624,235.89,235.7,27.32200624]
[1733260760581,27.32200624,235.97,235.56,27.32200624]
[1733260760782,1.2293,236.02,235.8,27.32200624]
[1733260760973,27.32200624,236.04,235.85,27.32200624]
[1733260761177,2.1171,236.05,235.85,27.32200624]
[1733260761380,39.74,236.25,235.89,27.32200624]
[1733260761680,27.32200624,236.14,235.89,27.32200624]
[1733260761879,2.1169,236.08,235.89,27.32200624]
[1733260762179,27.32200624,236.14,235.81,1.2266]
[1733260762375,27.32200624,236.14,235.91,27.32200624]
[1733260762575,2.1166,236.1,235.95,2.1179]
[1733260762880,27.32200624,236.14,235.91,27.32200624]
[1733260763080,2.1168,236.08,235.93,2.1181]
[1733260763282,27.32200624,236.14,235.91,27.32200624]
[1733260764574,26.89084782,236.14,235.91,26.89084782]
[1733260764777,2.1167,236.09,235.94,2.118]
[1733260765178,2.1164,236.13,235.97,2.1177]
[1733260765379,2.1164,236.13,235.95,26.89084782]
[1733260765981,26.89084782,236.22,235.95,26.89084782]
[1733260766181,26.881856,236.18,235.95,26.881856]
[1733260766474,26.881856,236.18,235.99,26.881856]
[1733260766683,2.1161,236.16,236.03,2.1172]
[1733260766979,26.881856,236.22,235.81,1.2266]
[1733260767176,26.881856,236.18,235.9,26.881856]
[1733260767380,26.881856,236.12,235.9,26.881856]
[1733260767583,2.1167,236.1,235.95,2.1179]
[1733260767780,26.881856,236.12,235.9,26.881856]
[1733260768081,2.117,236.06,235.91,2.1183]
[1733260768284,26.881856,236.17,235.9,26.881856]
[1733260768476,26.881856,236.22,235.95,26.881856]
[1733260768881,26.881856,236.17,235.81,1.2266]
[1733260769180,26.881856,236.17,235.9,26.881856]
[1733260769380,26.881856,236.12,235.9,26.881856]
[1733260769777,26.881856,236.06,235.85,26.881856]
[1733260770081,26.881856,236.11,235.85,26.881856]
[1733260770382,2.1176,236.0,235.85,26.881856]
[1733260770581,26.881856,236.06,235.85,26.881856]
[1733260771378,2.1177,235.98,235.8,26.881856]
[1733260771585,26.881856,236.01,235.75,26.881856]
[1733260771779,26.881856,235.95,235.7,26.881856]
[1733260771983,26.881856,235.9,235.65,26.881856]
[1733260772180,2.1194,235.8,235.66,2.1205]
[1733260772485,26.881856,235.9,235.65,26.881856]
[1733260772685,26.881856,235.9,235.7,26.881856]
[1733260772985,26.881856,235.9,235.65,26.881856]
[1733260773685,26.881856,235.85,235.65,26.881856]
[1733260774179,26.881856,235.85,235.6,26.881856]
[1733260774385,2.1197,235.77,235.65,26.881856]
[1733260774582,2.1197,235.77,235.46,1.2511]
[1733260774583,25.6,235.65,234.95,1.7851879]
[1733260774784,43.5125,235.64,235.13,26.881856]
[1733260774985,26.881856,235.5,235.28,26.881856]
[1733260775185,26.881856,235.55,235.31,26.881856]
[1733260775383,26.881856,235.45,235.22,26.881856]
[1733260775886,26.881856,235.55,235.27,26.881856]
[1733260776089,26.881856,235.49,235.23,26.881856]
[1733260776385,2.5389,235.64,235.2,26.881856]
[1733260776580,26.881856,235.5,235.38,2.123]
[1733260776786,2.5389,235.64,235.36,26.881856]
[1733260776986,26.881856,235.6,235.36,26.881856]
[1733260777185,2.5389,235.64,235.3,26.881856]
[1733260777382,26.881856,235.55,235.2,26.881856]
[1733260777582,2.5389,235.64,235.2,26.881856]
[1733260777583,26.881856,235.56,235.2,26.881856]
[1733260777790,26.881856,235.56,235.29,26.881856]
[1733260778086,26.881856,235.56,235.2,26.881856]
[1733260778286,26.881856,235.56,235.3,26.881856]
[1733260779787,2.5389,235.64,235.37,26.881856]
[1733260779991,26.881856,235.61,235.42,26.881856]
[1733260780187,26.881856,235.68,235.32,26.881856]
[1733260780389,26.881856,235.62,235.37,26.881856]
[1733260780586,26.881856,235.57,235.32,26.881856]
[1733260780890,26.881856,235.42,235.14,1.2511]
[1733260781086,26.881856,235.37,235.14,1.2511]
[1733260781392,26.881856,235.32,235.08,26.881856]
[1733260781591,26.881856,235.27,234.97,1.3021]
[1733260781893,2.1247,235.21,235.03,2.1262]
[1733260782093,2.1247,235.21,235.01,26.881856]
[1733260782294,26.881856,235.22,235.01,26.881856]
[1733260782592,26.881856,235.22,234.96,26.881856]
[1733260782993,26.881856,235.22,235.05,2.1261]
[1733260782994,29.006456,235.22,235.05,2.1261]
[1733260783193,26.881856,235.22,234.96,26.881856]
[1733260783396,26.881856,235.26,235.02,26.881856]
[1733260783694,26.881856,235.21,234.85,1.3021]
[1733260783897,26.881856,235.16,234.94,26.881856]
[1733260784694,2.1257,235.1,234.95,2.127]
[1733260784889,26.881856,235.16,234.94,26.881856]
[1733260785101,2.1256,235.11,234.94,2.1271]
[1733260785297,26.881856,235.11,234.77,39.74]
[1733260785494,26.881856,235.11,234.84,26.881856]
[1733260785691,2.126,235.06,234.84,26.881856]
[1733260785897,26.881856,235.11,234.84,26.881856]
[1733260786096,26.881856,235.11,234.89,26.881856]
[1733260786497,26.881856,235.2,234.94,26.881856]
[1733260786696,39.78,235.28,234.94,26.881856]
[1733260786896,26.881856,235.19,234.94,26.881856]
[1733260787293,2.1253,235.14,234.97,2.1268]
[1733260787499,26.881856,235.29,235.04,26.881856]
[1733260787699,39.78,235.65,235.2,26.881856]
[1733260787999,26.881856,235.52,235.25,26.881856]
[1733260788394,2.1236,235.33,235.17,2.1249]
[1733260788600,26.881856,235.37,235.17,26.881856]
[1733260788801,26.881856,235.44,235.17,26.881856]